[Event "Titled Tuesday Blitz August 17 2021"]
[White "Tregubov, Pavel V."]
[Black "Nesterov, Arseniy"]
[WhiteFideId "4115341"]
[BlackFideId "24198455"]
[WhiteElo "2423"]
[BlackElo "2477"]
[Result "0-1"]
[Round "10"]
[TimeControl "180+1"]
[Date "2021.08.17"]
[WhiteClock "0:00:59"]
[BlackClock "0:00:12"]

1. e4 {[%clk 0:03:00]}  e5 {[%clk 0:02:59]} 2. Nf3 {[%clk 0:03:01]}  Nc6 {[%clk 0:02:58]} 3. Bb5 {[%clk 0:03:01]}  a6 {[%clk 0:02:58]} 4. Ba4 {[%clk 0:03:01]}  b5 {[%clk 0:02:57]} 5. Bb3 {[%clk 0:03:00]}  Na5 {[%clk 0:02:58]} 6. d4 {[%clk 0:02:46]}  exd4 {[%clk 0:02:58]} 7. Nxd4 {[%clk 0:02:45]}  Bb7 {[%clk 0:02:58]} 8. O-O {[%clk 0:02:40]}  c5 {[%clk 0:02:57]} 9. Nf5 {[%clk 0:02:40]}  c4 {[%clk 0:02:57]} 10. Nc3 {[%clk 0:02:34]}  cxb3 {[%clk 0:02:54]} 11. axb3 {[%clk 0:02:34]}  Nc6 {[%clk 0:02:53]} 12. Nd5 {[%clk 0:02:33]}  d6 {[%clk 0:02:52]} 13. Be3 {[%clk 0:02:31]}  Rc8 {[%clk 0:02:52]} 14. Qg4 {[%clk 0:02:18]}  g6 {[%clk 0:02:30]} 15. Rfe1 {[%clk 0:02:11]}  Ne5 {[%clk 0:02:16]} 16. Qh3 {[%clk 0:01:46]}  gxf5 {[%clk 0:02:07]} 17. Bb6 {[%clk 0:01:38]}  Qg5 {[%clk 0:01:45]} 18. f4 {[%clk 0:01:38]}  Qg4 {[%clk 0:01:45]} 19. fxe5 {[%clk 0:01:38]}  Qxh3 {[%clk 0:01:44]} 20. gxh3 {[%clk 0:01:39]}  dxe5 {[%clk 0:01:32]} 21. Nc7+ {[%clk 0:01:38]}  Kd7 {[%clk 0:01:08]} 22. Rad1+ {[%clk 0:01:37]}  Kc6 {[%clk 0:01:08]} 23. Nd5 {[%clk 0:01:38]}  Ne7 {[%clk 0:00:55]} 24. Ba5 {[%clk 0:01:27]}  Nxd5 {[%clk 0:00:36]} 25. Rxd5 {[%clk 0:01:27]}  fxe4 {[%clk 0:00:20]} 26. Rxe5 {[%clk 0:01:25]}  Bc5+ {[%clk 0:00:21]} 27. Kf1 {[%clk 0:01:25]}  Rhe8 {[%clk 0:00:19]} 28. R1xe4 {[%clk 0:01:24]}  Rxe5 {[%clk 0:00:18]} 29. Rxe5 {[%clk 0:01:25]}  Kd7 {[%clk 0:00:16]} 30. Bc3 {[%clk 0:01:15]}  Bd6 {[%clk 0:00:14]} 31. Rh5 {[%clk 0:01:12]}  Be4 {[%clk 0:00:13]} 32. Ke2 {[%clk 0:01:06]}  Bxc2 {[%clk 0:00:13]} 33. Kd2 {[%clk 0:01:06]}  Bg6 {[%clk 0:00:13]} 34. Rd5 {[%clk 0:01:06]}  Ke6 {[%clk 0:00:13]} 35. Rd4 {[%clk 0:01:05]}  Be5 {[%clk 0:00:13]} 36. Rh4 {[%clk 0:01:04]}  Bxc3+ {[%clk 0:00:11]} 37. bxc3 {[%clk 0:01:04]}  Rd8+ {[%clk 0:00:12]} 38. Kc1 {[%clk 0:01:03]}  Rd3 {[%clk 0:00:11]} 39. Kb2 {[%clk 0:01:04]}  Rd2+ {[%clk 0:00:12]} 40. Ka3 {[%clk 0:01:04]}  Rxh2 {[%clk 0:00:12]} 41. Kb4 {[%clk 0:01:04]}  Ke5 {[%clk 0:00:12]} 42. c4 {[%clk 0:01:01]}  bxc4 {[%clk 0:00:12]} 43. bxc4 {[%clk 0:01:01]}  Rc2 {[%clk 0:00:12]} 44. Rg4 {[%clk 0:00:59]}  f5 {[%clk 0:00:12]} 0-1


[Site "https://www.chess.com"]

[Event "Titled Tuesday Blitz August 17 2021"]
[White "Valle Maytin, Luis Enrique"]
[Black "Chernov, Mikhail"]
[WhiteFideId "3503666"]
[BlackFideId "24143170"]
[WhiteElo "2209"]
[BlackElo "2244"]
[Result "0-1"]
[Round "10"]
[TimeControl "180+1"]
[Date "2021.08.18"]
[WhiteClock "0:00:02"]
[BlackClock "0:00:09"]

1. d4 {[%clk 0:03:00]}  d5 {[%clk 0:02:58]} 2. Nf3 {[%clk 0:02:56]}  Nc6 {[%clk 0:02:58]} 3. Bf4 {[%clk 0:02:54]}  Bg4 {[%clk 0:02:58]} 4. e3 {[%clk 0:02:54]}  e6 {[%clk 0:02:58]} 5. Be2 {[%clk 0:02:54]}  Bd6 {[%clk 0:02:58]} 6. Bg3 {[%clk 0:02:53]}  Nce7 {[%clk 0:02:57]} 7. Nbd2 {[%clk 0:02:53]}  c6 {[%clk 0:02:55]} 8. O-O {[%clk 0:02:51]}  Nf6 {[%clk 0:02:53]} 9. Bxd6 {[%clk 0:02:50]}  Qxd6 {[%clk 0:02:53]} 10. Ne5 {[%clk 0:02:51]}  Bxe2 {[%clk 0:02:51]} 11. Qxe2 {[%clk 0:02:52]}  Ng6 {[%clk 0:02:49]} 12. f4 {[%clk 0:02:51]}  Nd7 {[%clk 0:02:36]} 13. c4 {[%clk 0:02:38]}  f6 {[%clk 0:02:18]} 14. c5 {[%clk 0:02:04]}  Qe7 {[%clk 0:02:09]} 15. Nxd7 {[%clk 0:01:57]}  Qxd7 {[%clk 0:02:00]} 16. Qd3 {[%clk 0:01:55]}  O-O {[%clk 0:01:58]} 17. b4 {[%clk 0:01:53]}  a5 {[%clk 0:01:46]} 18. a3 {[%clk 0:01:51]}  e5 {[%clk 0:01:43]} 19. Nb3 {[%clk 0:01:47]}  axb4 {[%clk 0:01:36]} 20. fxe5 {[%clk 0:01:33]}  fxe5 {[%clk 0:01:07]} 21. axb4 {[%clk 0:01:22]}  Rxa1 {[%clk 0:01:01]} 22. Nxa1 {[%clk 0:01:19]}  exd4 {[%clk 0:00:50]} 23. Rxf8+ {[%clk 0:01:15]}  Nxf8 {[%clk 0:00:45]} 24. exd4 {[%clk 0:01:15]}  Qe7 {[%clk 0:00:36]} 25. Nc2 {[%clk 0:01:08]}  Ng6 {[%clk 0:00:35]} 26. g3 {[%clk 0:01:05]}  Qg5 {[%clk 0:00:32]} 27. Qe3 {[%clk 0:00:58]}  Qf5 {[%clk 0:00:30]} 28. Ne1 {[%clk 0:00:42]}  h5 {[%clk 0:00:24]} 29. Kg2 {[%clk 0:00:39]}  h4 {[%clk 0:00:23]} 30. Nf3 {[%clk 0:00:31]}  h3+ {[%clk 0:00:21]} 31. Kf2 {[%clk 0:00:30]}  Nf8 {[%clk 0:00:15]} 32. Qe2 {[%clk 0:00:16]}  Ne6 {[%clk 0:00:13]} 33. Qe5 {[%clk 0:00:10]}  Qxe5 {[%clk 0:00:07]} 34. dxe5 {[%clk 0:00:10]}  Kf7 {[%clk 0:00:03]} 35. Ke2 {[%clk 0:00:10]}  Ke7 {[%clk 0:00:04]} 36. Ke3 {[%clk 0:00:10]}  g5 {[%clk 0:00:04]} 37. Ng1 {[%clk 0:00:08]}  g4 {[%clk 0:00:04]} 38. Ne2 {[%clk 0:00:08]}  Kf7 {[%clk 0:00:04]} 39. Nc1 {[%clk 0:00:07]}  Kg6 {[%clk 0:00:04]} 40. Nd3 {[%clk 0:00:07]}  Kf5 {[%clk 0:00:04]} 41. Nc1 {[%clk 0:00:03]}  d4+ {[%clk 0:00:04]} 42. Kd3 {[%clk 0:00:03]}  Kxe5 {[%clk 0:00:05]} 43. Nb3 {[%clk 0:00:03]}  Kd5 {[%clk 0:00:06]} 44. Na5 {[%clk 0:00:04]}  Nd8 {[%clk 0:00:05]} 45. Nb3 {[%clk 0:00:03]}  Ne6 {[%clk 0:00:06]} 46. Na5 {[%clk 0:00:04]}  Nf4+ {[%clk 0:00:06]} 47. gxf4 {[%clk 0:00:03]}  g3 {[%clk 0:00:07]} 48. hxg3 {[%clk 0:00:03]}  h2 {[%clk 0:00:08]} 49. Nxc6 {[%clk 0:00:03]}  bxc6 {[%clk 0:00:07]} 50. b5 {[%clk 0:00:03]}  h1=Q {[%clk 0:00:08]} 51. bxc6 {[%clk 0:00:02]}  Qf3+ {[%clk 0:00:08]} 52. Kd2 {[%clk 0:00:03]}  Kc4 {[%clk 0:00:09]} 53. c7 {[%clk 0:00:02]}  Qg2+ {[%clk 0:00:09]} 54. Ke1 {[%clk 0:00:02]}  Kd3 {[%clk 0:00:09]} 55. Kd1 {[%clk 0:00:02]}  Qd2# {[%clk 0:00:09]} 0-1


[Site "https://www.chess.com"]

[Event "Titled Tuesday Blitz August 17 2021"]
[White "Vlassov, Nikolai"]
[Black "Makhnev, Denis"]
[WhiteFideId "4103360"]
[BlackFideId "13707647"]
[WhiteElo "2407"]
[BlackElo "2537"]
[Result "1-0"]
[Round "10"]
[TimeControl "180+1"]
[Date "2021.08.17"]
[WhiteClock "0:00:48"]
[BlackClock "0:00:18"]

1. e4 {[%clk 0:03:00]}  c6 {[%clk 0:02:59]} 2. d4 {[%clk 0:03:00]}  d5 {[%clk 0:03:00]} 3. e5 {[%clk 0:03:01]}  Bf5 {[%clk 0:03:00]} 4. Nc3 {[%clk 0:03:01]}  e6 {[%clk 0:02:59]} 5. g4 {[%clk 0:03:01]}  Bg6 {[%clk 0:03:00]} 6. Nge2 {[%clk 0:03:02]}  c5 {[%clk 0:03:00]} 7. Be3 {[%clk 0:03:01]}  h5 {[%clk 0:03:00]} 8. Nf4 {[%clk 0:02:56]}  Bh7 {[%clk 0:03:00]} 9. Nxh5 {[%clk 0:02:52]}  cxd4 {[%clk 0:03:00]} 10. Bxd4 {[%clk 0:02:52]}  Nc6 {[%clk 0:03:01]} 11. Bb5 {[%clk 0:02:51]}  Ne7 {[%clk 0:03:01]} 12. Bc5 {[%clk 0:02:42]}  a6 {[%clk 0:02:49]} 13. Bxc6+ {[%clk 0:02:41]}  Nxc6 {[%clk 0:02:50]} 14. Bxf8 {[%clk 0:02:41]}  Kxf8 {[%clk 0:02:51]} 15. f4 {[%clk 0:02:41]}  Qb6 {[%clk 0:01:37]} 16. Qd2 {[%clk 0:02:36]}  Qxb2 {[%clk 0:01:34]} 17. Rb1 {[%clk 0:02:32]}  Qxc2 {[%clk 0:01:28]} 18. Rxb7 {[%clk 0:02:21]}  d4 {[%clk 0:01:14]} 19. Qxc2 {[%clk 0:02:17]}  Bxc2 {[%clk 0:01:15]} 20. Ne2 {[%clk 0:02:05]}  Be4 {[%clk 0:01:13]} 21. O-O {[%clk 0:02:00]}  Nxe5 {[%clk 0:01:13]} 22. Rc7 {[%clk 0:01:42]}  Nf3+ {[%clk 0:01:07]} 23. Kf2 {[%clk 0:01:30]}  Nxh2 {[%clk 0:01:05]} 24. Rg1 {[%clk 0:01:19]}  Nxg4+ {[%clk 0:01:04]} 25. Rxg4 {[%clk 0:01:18]}  Rxh5 {[%clk 0:01:05]} 26. Nxd4 {[%clk 0:01:18]}  Rd8 {[%clk 0:01:01]} 27. Ke3 {[%clk 0:01:18]}  Bd5 {[%clk 0:00:54]} 28. Nc6 {[%clk 0:01:15]}  Rh3+ {[%clk 0:00:53]} 29. Kf2 {[%clk 0:01:13]}  Bxc6 {[%clk 0:00:29]} 30. Rxc6 {[%clk 0:01:13]}  Rd2+ {[%clk 0:00:29]} 31. Kg1 {[%clk 0:01:12]}  Re3 {[%clk 0:00:22]} 32. Kf1 {[%clk 0:01:06]}  Rxa2 {[%clk 0:00:21]} 33. Rc8+ {[%clk 0:01:05]}  Ke7 {[%clk 0:00:22]} 34. Rxg7 {[%clk 0:01:05]}  Rf3+ {[%clk 0:00:22]} 35. Kg1 {[%clk 0:01:04]}  Rxf4 {[%clk 0:00:22]} 36. Rc7+ {[%clk 0:01:03]}  Kf8 {[%clk 0:00:22]} 37. Rh7 {[%clk 0:01:03]}  Ra5 {[%clk 0:00:18]} 38. Rc8+ {[%clk 0:00:51]}  Ke7 {[%clk 0:00:18]} 39. Rc7+ {[%clk 0:00:52]}  Ke8 {[%clk 0:00:18]} 40. Rh8# {[%clk 0:00:48]} 1-0


[Site "https://www.chess.com"]

[Event "Titled Tuesday Blitz August 17 2021"]
[White "Woodward, Andy"]
[Black "Tania, Sachdev"]
[WhiteFideId "30953499"]
[BlackFideId "5007844"]
[WhiteElo "2137"]
[BlackElo "2280"]
[Result "0-1"]
[Round "10"]
[TimeControl "180+1"]
[Date "2021.08.17"]
[WhiteClock "0:00:07"]
[BlackClock "0:00:17"]

1. d4 {[%clk 0:03:00]}  Nf6 {[%clk 0:02:59]} 2. c4 {[%clk 0:03:01]}  e6 {[%clk 0:02:59]} 3. Nc3 {[%clk 0:03:01]}  Bb4 {[%clk 0:02:58]} 4. Qc2 {[%clk 0:03:01]}  c5 {[%clk 0:02:58]} 5. dxc5 {[%clk 0:03:01]}  Na6 {[%clk 0:02:58]} 6. a3 {[%clk 0:03:01]}  Bxc3+ {[%clk 0:02:58]} 7. Qxc3 {[%clk 0:03:02]}  Nxc5 {[%clk 0:02:59]} 8. b4 {[%clk 0:03:02]}  Nce4 {[%clk 0:02:59]} 9. Qd4 {[%clk 0:02:54]}  d5 {[%clk 0:02:59]} 10. c5 {[%clk 0:02:53]}  b6 {[%clk 0:02:59]} 11. f3 {[%clk 0:02:52]}  bxc5 {[%clk 0:02:59]} 12. bxc5 {[%clk 0:02:53]}  Qa5+ {[%clk 0:02:59]} 13. Qb4 {[%clk 0:02:53]}  Qc7 {[%clk 0:02:59]} 14. fxe4 {[%clk 0:02:53]}  Rb8 {[%clk 0:02:59]} 15. Qa4+ {[%clk 0:02:37]}  Bd7 {[%clk 0:02:59]} 16. Qc2 {[%clk 0:02:37]}  Nxe4 {[%clk 0:02:42]} 17. Nf3 {[%clk 0:02:32]}  O-O {[%clk 0:02:22]} 18. e3 {[%clk 0:02:25]}  Rfc8 {[%clk 0:02:06]} 19. Bd3 {[%clk 0:01:58]}  f5 {[%clk 0:01:49]} 20. O-O {[%clk 0:01:54]}  Qxc5 {[%clk 0:01:45]} 21. Qxc5 {[%clk 0:01:08]}  Nxc5 {[%clk 0:01:45]} 22. Be2 {[%clk 0:01:08]}  Ba4 {[%clk 0:01:21]} 23. Bd2 {[%clk 0:00:56]}  Nb3 {[%clk 0:01:17]} 24. Rab1 {[%clk 0:00:54]}  Nxd2 {[%clk 0:01:13]} 25. Nxd2 {[%clk 0:00:52]}  Rxb1 {[%clk 0:01:04]} 26. Rxb1 {[%clk 0:00:53]}  Rc3 {[%clk 0:00:59]} 27. Rb8+ {[%clk 0:00:25]}  Kf7 {[%clk 0:00:59]} 28. Rb7+ {[%clk 0:00:26]}  Kf6 {[%clk 0:00:59]} 29. Rxa7 {[%clk 0:00:26]}  Rxa3 {[%clk 0:00:51]} 30. Kf2 {[%clk 0:00:21]}  Ra2 {[%clk 0:00:42]} 31. Nb1 {[%clk 0:00:21]}  Rb2 {[%clk 0:00:20]} 32. Rxa4 {[%clk 0:00:17]}  Rxb1 {[%clk 0:00:20]} 33. g4 {[%clk 0:00:16]}  g6 {[%clk 0:00:20]} 34. h4 {[%clk 0:00:16]}  h6 {[%clk 0:00:20]} 35. Ra6 {[%clk 0:00:15]}  Rb2 {[%clk 0:00:20]} 36. gxf5 {[%clk 0:00:13]}  gxf5 {[%clk 0:00:21]} 37. h5 {[%clk 0:00:13]}  Ke5 {[%clk 0:00:18]} 38. Ra7 {[%clk 0:00:13]}  f4 {[%clk 0:00:17]} 39. exf4+ {[%clk 0:00:13]}  Kxf4 {[%clk 0:00:18]} 40. Rf7+ {[%clk 0:00:13]}  Kg5 {[%clk 0:00:18]} 41. Rg7+ {[%clk 0:00:13]}  Kf4 {[%clk 0:00:18]} 42. Rg6 {[%clk 0:00:13]}  e5 {[%clk 0:00:19]} 43. Rf6+ {[%clk 0:00:13]}  Ke4 {[%clk 0:00:19]} 44. Rxh6 {[%clk 0:00:13]}  d4 {[%clk 0:00:19]} 45. Ke1 {[%clk 0:00:10]}  d3 {[%clk 0:00:17]} 46. Bd1 {[%clk 0:00:07]}  Rh2 {[%clk 0:00:16]} 47. Rg6 {[%clk 0:00:04]}  Rh1+ {[%clk 0:00:15]} 48. Kd2 {[%clk 0:00:04]}  Rh2+ {[%clk 0:00:16]} 49. Kc3 {[%clk 0:00:04]}  Rh1 {[%clk 0:00:14]} 50. Rg4+ {[%clk 0:00:03]}  Kf5 {[%clk 0:00:14]} 51. Bf3 {[%clk 0:00:02]}  Rf1 {[%clk 0:00:14]} 52. Rg3 {[%clk 0:00:01]}  e4 {[%clk 0:00:12]} 53. Bg4+ {[%clk 0:00:01]}  Kf4 {[%clk 0:00:12]} 54. Bh3 {[%clk 0:00:01]}  Rc1+ {[%clk 0:00:11]} 55. Kd2 {[%clk 0:00:02]}  Rc2+ {[%clk 0:00:11]} 56. Kd1 {[%clk 0:00:02]}  Kxg3 {[%clk 0:00:12]} 57. Bf5 {[%clk 0:00:03]}  e3 {[%clk 0:00:10]} 58. Bxd3 {[%clk 0:00:03]}  Rd2+ {[%clk 0:00:10]} 59. Ke1 {[%clk 0:00:04]}  Rxd3 {[%clk 0:00:11]} 60. h6 {[%clk 0:00:05]}  Rd7 {[%clk 0:00:12]} 61. h7 {[%clk 0:00:06]}  Rxh7 {[%clk 0:00:12]} 62. Ke2 {[%clk 0:00:07]}  Kf4 {[%clk 0:00:12]} 63. Kd3 {[%clk 0:00:04]}  Rh2 {[%clk 0:00:12]} 64. Kc4 {[%clk 0:00:04]}  e2 {[%clk 0:00:13]} 65. Kc5 {[%clk 0:00:05]}  e1=Q {[%clk 0:00:13]} 66. Kc6 {[%clk 0:00:06]}  Rd2 {[%clk 0:00:14]} 67. Kc7 {[%clk 0:00:07]}  Qc1+ {[%clk 0:00:15]} 68. Kb7 {[%clk 0:00:06]}  Rb2+ {[%clk 0:00:16]} 69. Ka7 {[%clk 0:00:07]}  Qa1# {[%clk 0:00:17]} 0-1


[Site "https://www.chess.com"]

[Event "Titled Tuesday Blitz August 17 2021"]
[White "Yoo, Christopher Woojin"]
[Black "Sarana, Alexey"]
[WhiteFideId "30909694"]
[BlackFideId "24133795"]
[WhiteElo "2105"]
[BlackElo "2646"]
[Result "0-1"]
[Round "10"]
[TimeControl "180+1"]
[Date "2021.08.17"]
[WhiteClock "0:00:01"]
[BlackClock "0:00:24"]

1. e4 {[%clk 0:03:00]}  c5 {[%clk 0:02:53]} 2. Nf3 {[%clk 0:03:00]}  d6 {[%clk 0:02:54]} 3. Nc3 {[%clk 0:03:00]}  Nf6 {[%clk 0:02:54]} 4. e5 {[%clk 0:03:01]}  dxe5 {[%clk 0:02:54]} 5. Nxe5 {[%clk 0:03:02]}  a6 {[%clk 0:02:55]} 6. Qe2 {[%clk 0:02:58]}  Qc7 {[%clk 0:02:51]} 7. g3 {[%clk 0:02:54]}  Nc6 {[%clk 0:02:50]} 8. Nxc6 {[%clk 0:02:54]}  Qxc6 {[%clk 0:02:51]} 9. Rg1 {[%clk 0:02:54]}  Bg4 {[%clk 0:02:47]} 10. Bg2 {[%clk 0:02:53]}  Qd7 {[%clk 0:02:41]} 11. Qe3 {[%clk 0:02:46]}  e6 {[%clk 0:02:41]} 12. d3 {[%clk 0:02:46]}  Be7 {[%clk 0:02:39]} 13. Bd2 {[%clk 0:02:42]}  O-O {[%clk 0:02:34]} 14. h3 {[%clk 0:02:40]}  Bh5 {[%clk 0:02:34]} 15. g4 {[%clk 0:02:37]}  Bg6 {[%clk 0:02:34]} 16. O-O-O {[%clk 0:02:36]}  Rab8 {[%clk 0:02:13]} 17. f4 {[%clk 0:01:59]}  b5 {[%clk 0:02:11]} 18. g5 {[%clk 0:01:29]}  Nd5 {[%clk 0:02:07]} 19. Nxd5 {[%clk 0:01:28]}  exd5 {[%clk 0:02:08]} 20. Rde1 {[%clk 0:01:26]}  Rfe8 {[%clk 0:02:07]} 21. Qf3 {[%clk 0:01:24]}  d4 {[%clk 0:01:41]} 22. Qc6 {[%clk 0:00:46]}  Qd6 {[%clk 0:01:36]} 23. Re5 {[%clk 0:00:40]}  Red8 {[%clk 0:01:35]} 24. Rge1 {[%clk 0:00:30]}  Qxc6 {[%clk 0:01:34]} 25. Bxc6 {[%clk 0:00:31]}  Bd6 {[%clk 0:01:34]} 26. Rd5 {[%clk 0:00:32]}  f5 {[%clk 0:00:56]} 27. Ba5 {[%clk 0:00:28]}  Bxf4+ {[%clk 0:00:55]} 28. Kb1 {[%clk 0:00:26]}  Rxd5 {[%clk 0:00:52]} 29. Bxd5+ {[%clk 0:00:23]}  Bf7 {[%clk 0:00:53]} 30. Bxf7+ {[%clk 0:00:20]}  Kxf7 {[%clk 0:00:54]} 31. Rf1 {[%clk 0:00:20]}  Bd6 {[%clk 0:00:49]} 32. Rxf5+ {[%clk 0:00:20]}  Ke6 {[%clk 0:00:49]} 33. Rf1 {[%clk 0:00:21]}  Rf8 {[%clk 0:00:49]} 34. Re1+ {[%clk 0:00:21]}  Kd5 {[%clk 0:00:49]} 35. Bd2 {[%clk 0:00:14]}  Rf2 {[%clk 0:00:44]} 36. Bc1 {[%clk 0:00:12]}  Rh2 {[%clk 0:00:43]} 37. g6 {[%clk 0:00:10]}  hxg6 {[%clk 0:00:40]} 38. Rg1 {[%clk 0:00:09]}  Rxh3 {[%clk 0:00:40]} 39. Rg5+ {[%clk 0:00:09]}  Be5 {[%clk 0:00:40]} 40. b4 {[%clk 0:00:07]}  Rh1 {[%clk 0:00:34]} 41. Kb2 {[%clk 0:00:05]}  Ke6 {[%clk 0:00:25]} 42. Rxg6+ {[%clk 0:00:03]}  Kf5 {[%clk 0:00:25]} 43. Rg5+ {[%clk 0:00:03]}  Kf6 {[%clk 0:00:25]} 44. Rg4 {[%clk 0:00:01]}  c4 {[%clk 0:00:24]} 45. Bf4 {[%clk 0:00:01]}  Kf5 {[%clk 0:00:20]} 46. Bxe5 {[%clk 0:00:01]}  Kxg4 {[%clk 0:00:20]} 47. Bxg7 {[%clk 0:00:01]}  cxd3 {[%clk 0:00:20]} 48. cxd3 {[%clk 0:00:02]}  Rh2+ {[%clk 0:00:20]} 49. Kb3 {[%clk 0:00:02]}  Rd2 {[%clk 0:00:20]} 50. Bxd4 {[%clk 0:00:01]}  Rxd3+ {[%clk 0:00:21]} 51. Bc3 {[%clk 0:00:02]}  Kf3 {[%clk 0:00:21]} 52. Kc2 {[%clk 0:00:01]}  Ke4 {[%clk 0:00:21]} 53. Bb2 {[%clk 0:00:01]}  Rh3 {[%clk 0:00:22]} 54. Bc3 {[%clk 0:00:01]}  Kd5 {[%clk 0:00:22]} 55. Kb3 {[%clk 0:00:01]}  Rg3 {[%clk 0:00:22]} 56. a3 {[%clk 0:00:02]}  Rh3 {[%clk 0:00:22]} 57. Kb2 {[%clk 0:00:01]}  Kc4 {[%clk 0:00:22]} 58. Bd2 {[%clk 0:00:01]}  Rh2 {[%clk 0:00:22]} 59. Kc2 {[%clk 0:00:01]}  Rg2 {[%clk 0:00:23]} 60. Kd1 {[%clk 0:00:01]}  Kd3 {[%clk 0:00:24]} 61. Be1 {[%clk 0:00:01]}  Rg1 {[%clk 0:00:24]} 0-1


[Site "https://www.chess.com"]

[Event "Titled Tuesday Blitz August 17 2021"]
[White "ARTHURMOTIVATOR"]
[Black "Rosenberg, Evan S"]
[BlackFideId "2019299"]
[WhiteElo "2347"]
[BlackElo "2275"]
[Result "1-0"]
[Round "11"]
[TimeControl "180+1"]
[Date "2021.08.18"]
[WhiteClock "0:00:06"]
[BlackClock "0:00:04"]

1. e4 {[%clk 0:02:59]}  c6 {[%clk 0:02:58]} 2. d4 {[%clk 0:02:58]}  d5 {[%clk 0:02:59]} 3. Nc3 {[%clk 0:02:58]}  dxe4 {[%clk 0:02:59]} 4. Nxe4 {[%clk 0:02:58]}  Nf6 {[%clk 0:03:00]} 5. Nxf6+ {[%clk 0:02:58]}  exf6 {[%clk 0:03:00]} 6. c3 {[%clk 0:02:55]}  Bd6 {[%clk 0:03:01]} 7. Bd3 {[%clk 0:02:54]}  O-O {[%clk 0:03:00]} 8. Ne2 {[%clk 0:02:54]}  Re8 {[%clk 0:02:57]} 9. O-O {[%clk 0:02:50]}  Qc7 {[%clk 0:02:46]} 10. Ng3 {[%clk 0:02:41]}  c5 {[%clk 0:02:36]} 11. d5 {[%clk 0:02:10]}  c4 {[%clk 0:02:22]} 12. Bc2 {[%clk 0:02:09]}  b5 {[%clk 0:02:21]} 13. Nh5 {[%clk 0:01:56]}  Bxh2+ {[%clk 0:02:13]} 14. Kh1 {[%clk 0:01:55]}  Be5 {[%clk 0:02:13]} 15. f4 {[%clk 0:01:43]}  Bd6 {[%clk 0:02:13]} 16. Qf3 {[%clk 0:01:18]}  Qd7 {[%clk 0:01:53]} 17. f5 {[%clk 0:00:54]}  Kh8 {[%clk 0:01:22]} 18. Be3 {[%clk 0:00:30]}  Na6 {[%clk 0:01:11]} 19. Bd4 {[%clk 0:00:28]}  Be5 {[%clk 0:01:08]} 20. Rad1 {[%clk 0:00:19]}  Qd6 {[%clk 0:00:54]} 21. Qg4 {[%clk 0:00:18]}  Rg8 {[%clk 0:00:54]} 22. Bxe5 {[%clk 0:00:16]}  fxe5 {[%clk 0:00:46]} 23. Qe4 {[%clk 0:00:16]}  Qh6 {[%clk 0:00:33]} 24. g4 {[%clk 0:00:12]}  f6 {[%clk 0:00:17]} 25. Kg2 {[%clk 0:00:12]}  Bb7 {[%clk 0:00:15]} 26. Rh1 {[%clk 0:00:11]}  Nc5 {[%clk 0:00:14]} 27. Qe2 {[%clk 0:00:09]}  Nd3 {[%clk 0:00:13]} 28. Bxd3 {[%clk 0:00:08]}  cxd3 {[%clk 0:00:13]} 29. Rxd3 {[%clk 0:00:08]}  e4 {[%clk 0:00:12]} 30. Rdh3 {[%clk 0:00:06]}  Bxd5 {[%clk 0:00:11]} 31. Nxf6 {[%clk 0:00:05]}  Qxh3+ {[%clk 0:00:08]} 32. Rxh3 {[%clk 0:00:04]}  gxf6 {[%clk 0:00:09]} 33. Kg1 {[%clk 0:00:05]}  e3 {[%clk 0:00:07]} 34. Qh2 {[%clk 0:00:05]}  Rxg4+ {[%clk 0:00:07]} 35. Kf1 {[%clk 0:00:06]}  Rf4+ {[%clk 0:00:05]} 36. Ke1 {[%clk 0:00:05]}  Kg8 {[%clk 0:00:04]} 37. Qxf4 {[%clk 0:00:05]}  Re8 {[%clk 0:00:03]} 38. Rg3+ {[%clk 0:00:06]}  Kf7 {[%clk 0:00:04]} 39. Qg4 {[%clk 0:00:06]}  Ke7 {[%clk 0:00:03]} 40. Qg7+ {[%clk 0:00:06]}  Kd6 {[%clk 0:00:04]} 41. Qxf6+ {[%clk 0:00:07]}  Kd7 {[%clk 0:00:04]} 42. Rg7+ {[%clk 0:00:06]}  Kc8 {[%clk 0:00:05]} 43. Qd6 {[%clk 0:00:06]}  Rd8 {[%clk 0:00:04]} 44. Qc7# {[%clk 0:00:06]} 1-0


[Site "https://www.chess.com"]

[Event "Titled Tuesday Blitz August 17 2021"]
[White "Adury, Anant"]
[Black "Alavkin, Arseny"]
[WhiteFideId "30964687"]
[BlackFideId "4120612"]
[WhiteElo "2316"]
[BlackElo "2391"]
[Result "1-0"]
[Round "11"]
[TimeControl "180+1"]
[Date "2021.08.17"]
[WhiteClock "0:02:14"]
[BlackClock "0:01:43"]

1. d4 {[%clk 0:03:00]}  f5 {[%clk 0:02:58]} 2. Bg5 {[%clk 0:02:53]}  d5 {[%clk 0:02:55]} 3. e3 {[%clk 0:02:48]}  Nf6 {[%clk 0:02:53]} 4. Bxf6 {[%clk 0:02:40]}  exf6 {[%clk 0:02:54]} 5. Bd3 {[%clk 0:02:38]}  g6 {[%clk 0:02:48]} 6. c4 {[%clk 0:02:30]}  Bb4+ {[%clk 0:02:36]} 7. Nc3 {[%clk 0:02:29]}  Bxc3+ {[%clk 0:02:33]} 8. bxc3 {[%clk 0:02:30]}  dxc4 {[%clk 0:02:10]} 9. Bxc4 {[%clk 0:02:28]}  Qe7 {[%clk 0:02:03]} 10. Nf3 {[%clk 0:02:27]}  Kf8 {[%clk 0:02:01]} 11. O-O {[%clk 0:02:24]}  Kg7 {[%clk 0:01:59]} 12. Qb3 {[%clk 0:02:22]}  Nc6 {[%clk 0:01:56]} 13. Nd2 {[%clk 0:02:14]}  Na5 {[%clk 0:01:55]} 14. Qb4 {[%clk 0:02:14]}  Nxc4 {[%clk 0:01:55]} 15. Qxe7+ {[%clk 0:02:13]}  Kh6 {[%clk 0:01:43]} 16. Nxc4 {[%clk 0:02:14]} 1-0


[Site "https://www.chess.com"]

[Event "Titled Tuesday Blitz August 17 2021"]
[White "Baches Garcia, Guillermo"]
[Black "Dev, Shah"]
[WhiteFideId "2209764"]
[BlackFideId "35019058"]
[WhiteElo "2498"]
[BlackElo "2098"]
[Result "0-1"]
[Round "11"]
[TimeControl "180+1"]
[Date "2021.08.17"]
[WhiteClock "0:00:11"]
[BlackClock "0:00:58"]

1. e4 {[%clk 0:03:00]}  e5 {[%clk 0:02:57]} 2. Nf3 {[%clk 0:03:00]}  Nc6 {[%clk 0:02:57]} 3. Bc4 {[%clk 0:03:00]}  Bc5 {[%clk 0:02:56]} 4. c3 {[%clk 0:02:59]}  Nf6 {[%clk 0:02:56]} 5. d4 {[%clk 0:02:59]}  exd4 {[%clk 0:02:57]} 6. e5 {[%clk 0:02:59]}  d5 {[%clk 0:02:58]} 7. Bb5 {[%clk 0:02:59]}  Ne4 {[%clk 0:02:58]} 8. cxd4 {[%clk 0:02:59]}  Bb6 {[%clk 0:02:59]} 9. Nc3 {[%clk 0:02:59]}  O-O {[%clk 0:03:00]} 10. Be3 {[%clk 0:02:59]}  f5 {[%clk 0:03:00]} 11. exf6 {[%clk 0:02:43]}  Nxf6 {[%clk 0:02:54]} 12. O-O {[%clk 0:02:36]}  Ne7 {[%clk 0:02:54]} 13. Be2 {[%clk 0:02:27]}  Nf5 {[%clk 0:02:46]} 14. Bf4 {[%clk 0:02:23]}  c6 {[%clk 0:02:45]} 15. Na4 {[%clk 0:02:13]}  Bc7 {[%clk 0:02:43]} 16. Ne5 {[%clk 0:02:10]}  Ne4 {[%clk 0:02:34]} 17. f3 {[%clk 0:01:58]}  Ned6 {[%clk 0:02:29]} 18. Qd2 {[%clk 0:01:50]}  Be6 {[%clk 0:02:19]} 19. Nc5 {[%clk 0:01:49]}  Bc8 {[%clk 0:02:17]} 20. Rae1 {[%clk 0:01:42]}  Bb6 {[%clk 0:02:13]} 21. Kh1 {[%clk 0:01:33]}  Nxd4 {[%clk 0:01:59]} 22. Qxd4 {[%clk 0:01:23]}  Bxc5 {[%clk 0:01:57]} 23. Qxc5 {[%clk 0:01:21]}  Rxf4 {[%clk 0:01:55]} 24. Bd3 {[%clk 0:01:15]}  Bf5 {[%clk 0:01:43]} 25. Qe3 {[%clk 0:00:59]}  Bxd3 {[%clk 0:01:38]} 26. Nxd3 {[%clk 0:00:59]}  Rf6 {[%clk 0:01:33]} 27. Nc5 {[%clk 0:00:54]}  Nc4 {[%clk 0:01:30]} 28. Qd4 {[%clk 0:00:54]}  Qb6 {[%clk 0:01:23]} 29. Re7 {[%clk 0:00:28]}  Nd6 {[%clk 0:01:12]} 30. b4 {[%clk 0:00:16]}  Nf5 {[%clk 0:01:08]} 31. Qe5 {[%clk 0:00:17]}  Nxe7 {[%clk 0:01:06]} 32. Qxe7 {[%clk 0:00:18]}  Qxb4 {[%clk 0:01:02]} 33. Re1 {[%clk 0:00:14]}  Rf7 {[%clk 0:01:01]} 34. Qd6 {[%clk 0:00:11]}  b6 {[%clk 0:00:58]} 0-1


[Site "https://www.chess.com"]